[Event "African Games-chT 2019"]
[Site "Casablanca"]
[Date "2019.08.25"]
[Round "6.29"]
[White "Amba, Oyon Marius Claude"]
[Black "Beukes, Dante M"]
[Result "0-1"]
[ECO "B32"]
[WhiteElo "1911"]
[BlackElo "2130"]
[Annotator "NA"]
[PlyCount "54"]
[EventDate "2019.08.24"]
[EventType "team-tourn"]
[EventCountry "MAR"]
[SourceTitle "playchess.com"]
[Source "ChessBase"]
[SourceQuality "1"]
[WhiteTeam "CMR"]
[BlackTeam "Namibia"]
[BlackTeamCountry "NAM"]
[TimeControl "900+10"]

1. e4 {[%emt 0:00:00]} c5 {[%emt 0:00:05]} 2. Nf3 {[%emt 0:00:00]} Nc6 {[%emt 0:00:02]} 3. d4 {[%emt 0:00:00]} cxd4 {[%emt 0:00:02]} 4. Nxd4 {[%emt 0:00:00]} g6 {[%emt 0:00:17]} 5. Bc4 {[%emt 0:00:38]} Qa5+ {[%emt 0:00:03]} 6. c3 {[%emt 0:00:47]} Bg7 {[%emt 0:00:02]} 7. O-O {[%emt 0:00:08]} Nf6 {[%emt 0:00:05]} 8. Nd2 {[%emt 0:00:27]} O-O {[%emt 0:00:22]} 9. Kh1 {[%emt 0:00:17]} d5 {[%emt 0:00:22]} 10. exd5 {[%emt 0:00:11]} Nxd5 {[%emt 0:00:16]} 11. N2b3 {[%emt 0:00:04]} Qd8 {[%emt 0:00:08]} 12. Qf3 {[%emt 0:00:31]} Nb6 {[%emt 0:02:06]} 13. Nxc6 {[%emt 0:00:51]} bxc6 {[%emt 0:00:03]} 14. Rd1 {[%emt 0:01:18]} Qc7 {[%emt 0:00:27]} 15. Bf4 {[%emt 0:00:11]} e5 {[%emt 0:00:13]} 16. Bxe5 {[%emt 0:01:58]} Bxe5 {[%emt 0:00:14]} 17. Bd3 {[%emt 0:00:13]} Na4 {[%emt 0:03:32]} 18. Rab1 {[%emt 0:00:31]} Be6 {[%emt 0:00:07]} 19. Be4 {[%emt 0:00:11]} Rac8 {[%emt 0:00:24]} 20. Nd4 {[%emt 0:00:10]} Nc5 {[%emt 0:00:56]} 21. Bxc6 {[%emt 0:02:02]} Bxd4 {[%emt 0:00:17]} 22. cxd4 {[%emt 0:00:14]} Qxc6 {[%emt 0:00:02]} 23. d5 {[%emt 0:00:59]} Qa8 {[%emt 0:00:36]} 24. b4 {[%emt 0:00:20]} Na4 {[%emt 0:00:20]} 25. dxe6 {[%emt 0:00:06]} Qxf3 {[%emt 0:00:01]} 26. gxf3 {[%emt 0:00:03]} Nc3 {[%emt 0:00:47]} 27. exf7+ {[%emt 0:00:02]} Kg7 0-1

[Event "African Games-chT 2019"]
[Site "Casablanca"]
[Date "2019.08.25"]
[Round "6.30"]
[White "Eichab, Charles"]
[Black "Ebosse, Kingue Victor Patric"]
[Result "1-0"]
[ECO "A15"]
[WhiteElo "2016"]
[BlackElo "2055"]
[Annotator "NA"]
[PlyCount "109"]
[EventDate "2019.08.24"]
[EventType "team-tourn"]
[EventCountry "MAR"]
[SourceTitle "playchess.com"]
[Source "ChessBase"]
[SourceQuality "1"]
[WhiteTeam "Namibia"]
[BlackTeam "CMR"]
[WhiteTeamCountry "NAM"]
[TimeControl "900+10"]

1. c4 {[%emt 0:00:00]} Nf6 {[%emt 0:00:00]} 2. g3 {[%emt 0:00:00]} g6 {[%emt 0:00:00]} 3. Bg2 {[%emt 0:00:00]} Bg7 {[%emt 0:00:00]} 4. Nc3 {[%emt 0:00:04]} O-O {[%emt 0:00:00]} 5. Nf3 {[%emt 0:00:03]} d6 {[%emt 0:00:00]} 6. O-O {[%emt 0:00:06]} Nc6 {[%emt 0:00:00]} 7. d3 {[%emt 0:00:02]} e5 {[%emt 0:00:03]} 8. Rb1 {[%emt 0:00:04]} a5 {[%emt 0:00:01]} 9. a3 {[%emt 0:00:18]} d5 {[%emt 0:00:23]} 10. cxd5 {[%emt 0:00:32]} Nxd5 {[%emt 0:00:03]} 11. Nxd5 {[%emt 0:00:02]} Qxd5 {[%emt 0:00:01]} 12. Be3 {[%emt 0:00:01]} a4 {[%emt 0:00:17]} 13. Nd4 {[%emt 0:00:28]} Qd6 {[%emt 0:00:33]} 14. Nxc6 {[%emt 0:00:06]} bxc6 {[%emt 0:00:01]} 15. Qc2 {[%emt 0:00:13]} Rd8 {[%emt 0:01:09]} 16. Bxc6 {[%emt 0:01:36]} Ra6 {[%emt 0:00:33]} 17. Rfc1 {[%emt 0:00:20]} h5 {[%emt 0:02:08]} 18. Bxa4 {[%emt 0:01:55]} Bh3 {[%emt 0:00:02]} 19. Bc6 {[%emt 0:00:09]} h4 {[%emt 0:01:07]} 20. Qc4 {[%emt 0:01:07]} Bc8 {[%emt 0:03:58]} 21. a4 {[%emt 0:01:51]} hxg3 {[%emt 0:00:13]} 22. hxg3 {[%emt 0:00:27]} Qf6 {[%emt 0:02:00]} 23. Bb5 {[%emt 0:01:29]} Rad6 {[%emt 0:02:04]} 24. Qxc7 {[%emt 0:00:38]} e4 {[%emt 0:00:11]} 25. dxe4 {[%emt 0:02:32]} Bh3 {[%emt 0:01:56]} 26. Rc6 {[%emt 0:01:17]} Qe5 {[%emt 0:00:45]} 27. Bd3 {[%emt 0:01:40]} R8d7 {[%emt 0:01:23]} 28. Qc8+ {[%emt 0:00:25]} Rd8 {[%emt 0:00:00]} 29. Qc7 {[%emt 0:01:02]} R8d7 {[%emt 0:00:04]} 30. Qb6 {[%emt 0:00:11]} Re6 {[%emt 0:00:30]} 31. Rxe6 {[%emt 0:00:41]} Bxe6 {[%emt 0:00:02]} 32. Kg2 {[%emt 0:00:27]} Bf6 {[%emt 0:00:24]} 33. Bf4 {[%emt 0:00:12]} Qd4 {[%emt 0:00:20]} 34. Qxd4 {[%emt 0:00:13]} Bxd4 {[%emt 0:00:01]} 35. b4 {[%emt 0:00:11]} Ra7 {[%emt 0:00:04]} 36. a5 {[%emt 0:00:05]} Bd7 {[%emt 0:00:05]} 37. a6 {[%emt 0:00:06]} Ra8 {[%emt 0:00:23]} 38. b5 {[%emt 0:00:07]} Bb6 {[%emt 0:00:02]} 39. Be5 {[%emt 0:00:35]} Kf8 {[%emt 0:00:03]} 40. Bf6 {[%emt 0:00:06]} Ke8 {[%emt 0:00:03]} 41. Rb2 {[%emt 0:00:10]} Be6 {[%emt 0:00:06]} 42. f4 {[%emt 0:00:05]} Kd7 {[%emt 0:00:04]} 43. Kf3 {[%emt 0:00:04]} Rc8 {[%emt 0:00:19]} 44. g4 {[%emt 0:00:03]} Ke8 {[%emt 0:00:44]} 45. f5 {[%emt 0:00:14]} gxf5 {[%emt 0:00:01]} 46. gxf5 {[%emt 0:00:05]} Bd7 {[%emt 0:00:16]} 47. e3 {[%emt 0:00:01]} Rc1 {[%emt 0:00:06]} 48. Bd4 {[%emt 0:00:18]} Bxd4 {[%emt 0:00:18]} 49. exd4 {[%emt 0:00:02]} Bc8 {[%emt 0:00:04]} 50. Rc2 {[%emt 0:00:36]} Rxc2 51. Bxc2 {[%emt 0:00:01]} Kd8 {[%emt 0:00:02]} 52. Bd3 {[%emt 0:00:01]} Kc7 {[%emt 0:00:00]} 53. Kf4 {[%emt 0:00:01]} f6 {[%emt 0:00:02]} 54. e5 {[%emt 0:00:02]} Bd7 {[%emt 0:00:37]} 55. Bc4 {[%emt 0:00:28]} 1-0

[Event "African Games-chT 2019"]
[Site "Casablanca"]
[Date "2019.08.25"]
[Round "6.31"]
[White "Magne, Kouokam Sylviane"]
[Black "Tjaronda, Nicola"]
[Result "1/2-1/2"]
[ECO "B08"]
[WhiteElo "1317"]
[BlackElo "1545"]
[Annotator "NA"]
[PlyCount "133"]
[EventDate "2019.08.24"]
[EventType "team-tourn"]
[EventCountry "MAR"]
[SourceTitle "playchess.com"]
[Source "ChessBase"]
[SourceQuality "1"]
[WhiteTeam "CMR"]
[BlackTeam "Namibia"]
[BlackTeamCountry "NAM"]
[TimeControl "900+10"]

1. d4 {[%emt 0:00:00]} d6 {[%emt 0:00:00]} 2. Nf3 {[%emt 0:00:00]} g6 {[%emt 0:00:00]} 3. Nc3 {[%emt 0:00:00]} Bg7 {[%emt 0:00:00]} 4. e4 {[%emt 0:00:04]} Nf6 {[%emt 0:00:00]} 5. Be2 {[%emt 0:00:05]} O-O {[%emt 0:00:04]} 6. Bf4 {[%emt 0:00:12]} Re8 {[%emt 0:00:14]} 7. e5 {[%emt 0:00:08]} dxe5 {[%emt 0:00:11]} 8. Nxe5 {[%emt 0:00:02]} Nd5 {[%emt 0:00:30]} 9. Nxd5 {[%emt 0:00:17]} Qxd5 {[%emt 0:00:01]} 10. Bf3 {[%emt 0:00:16]} Qa5+ {[%emt 0:00:42]} 11. Bd2 {[%emt 0:00:26]} Qb6 12. Bc3 {[%emt 0:00:14]} Nd7 {[%emt 0:00:20]} 13. Qe2 {[%emt 0:00:42]} Nxe5 {[%emt 0:00:23]} 14. dxe5 {[%emt 0:00:02]} Be6 {[%emt 0:00:09]} 15. O-O {[%emt 0:00:07]} Rad8 {[%emt 0:00:26]} 16. Rfd1 {[%emt 0:00:05]} c6 {[%emt 0:00:30]} 17. a3 {[%emt 0:00:41]} Qc7 {[%emt 0:00:49]} 18. Rd3 {[%emt 0:00:17]} Bc4 {[%emt 0:00:16]} 19. Rad1 {[%emt 0:01:00]} Bxd3 {[%emt 0:00:08]} 20. cxd3 {[%emt 0:00:04]} e6 {[%emt 0:00:47]} 21. b4 {[%emt 0:00:16]} b6 {[%emt 0:00:11]} 22. h4 {[%emt 0:00:20]} c5 {[%emt 0:01:37]} 23. h5 {[%emt 0:00:34]} cxb4 {[%emt 0:00:25]} 24. Bxb4 {[%emt 0:00:10]} Qxe5 {[%emt 0:00:11]} 25. Qxe5 {[%emt 0:00:25]} Bxe5 {[%emt 0:00:02]} 26. Bc6 {[%emt 0:00:02]} Bg7 {[%emt 0:01:35]} 27. Bxe8 Rxe8 28. hxg6 {[%emt 0:00:28]} hxg6 {[%emt 0:00:15]} 29. f3 {[%emt 0:00:25]} Rd8 {[%emt 0:00:16]} 30. Kf1 {[%emt 0:00:03]} a5 {[%emt 0:00:48]} 31. Be7 {[%emt 0:00:15]} Rd7 {[%emt 0:00:05]} 32. Bg5 {[%emt 0:00:10]} Bf8 {[%emt 0:00:12]} 33. a4 {[%emt 0:01:41]} Bc5 {[%emt 0:01:06]} 34. Bf6 {[%emt 0:00:09]} Bd4 {[%emt 0:00:17]} 35. Bh4 {[%emt 0:01:24]} Bg7 {[%emt 0:01:20]} 36. Bf2 {[%emt 0:00:12]} Bd4 {[%emt 0:00:16]} 37. Bh4 {[%emt 0:00:15]} Rc7 {[%emt 0:00:11]} 38. Bg3 {[%emt 0:01:57]} Rc2 {[%emt 0:00:47]} 39. Re1 {[%emt 0:01:06]} Ra2 {[%emt 0:00:13]} 40. Re4 {[%emt 0:00:28]} Rxa4 {[%emt 0:00:40]} 41. f4 {[%emt 0:00:12]} Ra1+ {[%emt 0:00:06]} 42. Ke2 {[%emt 0:00:01]} Bf6 {[%emt 0:00:30]} 43. Bf2 {[%emt 0:00:23]} Ra2+ {[%emt 0:00:08]} 44. Kf3 {[%emt 0:00:02]} Rb2 {[%emt 0:00:14]} 45. Rc4 {[%emt 0:00:25]} b5 {[%emt 0:00:16]} 46. Rc8+ {[%emt 0:00:21]} Kg7 {[%emt 0:00:01]} 47. g4 {[%emt 0:00:15]} a4 {[%emt 0:00:20]} 48. g5 {[%emt 0:00:08]} Rxf2+ {[%emt 0:01:14]} 49. Kxf2 {[%emt 0:00:01]} Bd4+ {[%emt 0:00:12]} 50. Ke2 {[%emt 0:00:02]} a3 {[%emt 0:00:12]} 51. Ra8 {[%emt 0:00:30]} b4 {[%emt 0:00:03]} 52. Kd1 {[%emt 0:00:01]} e5 {[%emt 0:00:32]} 53. fxe5 {[%emt 0:00:13]} Bxe5 {[%emt 0:00:01]} 54. Kc2 {[%emt 0:00:00]} f6 {[%emt 0:00:51]} 55. Ra7+ {[%emt 0:00:11]} Kf8 {[%emt 0:00:02]} 56. gxf6 {[%emt 0:00:03]} Bxf6 {[%emt 0:00:02]} 57. Kb3 {[%emt 0:00:03]} Be7 {[%emt 0:00:21]} 58. Ra6 {[%emt 0:00:11]} g5 {[%emt 0:00:02]} 59. d4 {[%emt 0:00:17]} Ke8 {[%emt 0:00:52]} 60. Ra8+ {[%emt 0:00:16]} Kd7 {[%emt 0:00:03]} 61. d5 {[%emt 0:00:05]} g4 {[%emt 0:00:25]} 62. Rg8 {[%emt 0:00:10]} Kd6 {[%emt 0:00:05]} 63. Rxg4 {[%emt 0:00:16]} Kxd5 {[%emt 0:00:01]} 64. Rg7 {[%emt 0:00:10]} Bc5 {[%emt 0:00:39]} 65. Rd7+ {[%emt 0:00:04]} Kc6 {[%emt 0:00:06]} 66. Rd3 {[%emt 0:00:01]} Kb5 {[%emt 0:00:12]} 67. Rh3 1/2-1/2

[Event "African Games-chT 2019"]
[Site "Casablanca"]
[Date "2019.08.25"]
[Round "6.32"]
[White "Mentile, Lishen"]
[Black "Youwou Pedhom, Grace Christie"]
[Result "1-0"]
[ECO "B01"]
[WhiteElo "1513"]
[BlackElo "1640"]
[Annotator "NA"]
[PlyCount "109"]
[EventDate "2019.08.24"]
[EventType "team-tourn"]
[EventCountry "MAR"]
[SourceTitle "playchess.com"]
[Source "ChessBase"]
[SourceQuality "1"]
[WhiteTeam "Namibia"]
[WhiteTeamCountry "NAM"]
[TimeControl "900+10"]

1. e4 {[%emt 0:00:00]} d5 {[%emt 0:00:00]} 2. exd5 {[%emt 0:00:07]} Qxd5 {[%emt 0:00:00]} 3. Nc3 {[%emt 0:00:02]} Qd8 {[%emt 0:00:00]} 4. d4 {[%emt 0:00:05]} Nf6 {[%emt 0:00:08]} 5. h3 {[%emt 0:00:12]} e6 {[%emt 0:00:12]} 6. Nf3 {[%emt 0:00:03]} Be7 {[%emt 0:00:50]} 7. Bc4 {[%emt 0:00:26]} O-O {[%emt 0:00:09]} 8. O-O {[%emt 0:00:02]} a6 {[%emt 0:01:41]} 9. Bg5 {[%emt 0:00:58]} b5 {[%emt 0:00:11]} 10. Bb3 {[%emt 0:00:01]} c5 {[%emt 0:00:24]} 11. dxc5 {[%emt 0:00:17]} Bxc5 {[%emt 0:00:13]} 12. Qxd8 {[%emt 0:03:50]} Rxd8 {[%emt 0:01:20]} 13. Bxf6 {[%emt 0:01:15]} gxf6 {[%emt 0:00:02]} 14. Ne4 Nd7 {[%emt 0:01:49]} 15. Rad1 {[%emt 0:00:16]} Bb7 {[%emt 0:00:22]} 16. Rfe1 {[%emt 0:03:11]} f5 {[%emt 0:00:16]} 17. Nxc5 {[%emt 0:01:55]} Nxc5 {[%emt 0:00:06]} 18. Ne5 {[%emt 0:00:38]} Kf8 {[%emt 0:01:41]} 19. c3 {[%emt 0:00:52]} Ke7 {[%emt 0:00:17]} 20. Bc2 {[%emt 0:00:26]} h6 {[%emt 0:00:35]} 21. Nf3 {[%emt 0:00:53]} Bxf3 22. gxf3 Rg8+ {[%emt 0:00:28]} 23. Kf1 {[%emt 0:00:04]} Rg7 {[%emt 0:00:21]} 24. Bxf5 {[%emt 0:00:03]} Kf6 {[%emt 0:00:33]} 25. Bc2 {[%emt 0:00:34]} Rag8 {[%emt 0:00:39]} 26. Ke2 {[%emt 0:00:05]} Rg2 {[%emt 0:01:06]} 27. Rh1 {[%emt 0:00:48]} h5 {[%emt 0:01:21]} 28. Ke3 {[%emt 0:00:26]} h4 {[%emt 0:00:10]} 29. f4 {[%emt 0:01:01]} e5 {[%emt 0:01:21]} 30. fxe5+ {[%emt 0:00:45]} Kxe5 {[%emt 0:00:04]} 31. Kf3 {[%emt 0:00:11]} f5 {[%emt 0:00:23]} 32. Rhe1+ {[%emt 0:00:06]} Kf6 {[%emt 0:00:25]} 33. Rd6+ {[%emt 0:00:01]} Kf7 {[%emt 0:00:16]} 34. Bxf5 {[%emt 0:00:19]} Rg1 {[%emt 0:00:44]} 35. Rxg1 Rxg1 {[%emt 0:00:03]} 36. Rc6 {[%emt 0:00:21]} Na4 {[%emt 0:00:55]} 37. b3 {[%emt 0:00:14]} Nb2 {[%emt 0:00:10]} 38. Rxa6 {[%emt 0:00:07]} Nd1 {[%emt 0:00:13]} 39. Rc6 {[%emt 0:00:22]} Rf1 {[%emt 0:00:05]} 40. Ke2 {[%emt 0:00:07]} Rxf2+ {[%emt 0:00:12]} 41. Kxd1 {[%emt 0:00:02]} Rxf5 {[%emt 0:00:01]} 42. Ke2 {[%emt 0:00:37]} Rg5 {[%emt 0:00:09]} 43. Rh6 {[%emt 0:00:08]} Rg2+ {[%emt 0:00:06]} 44. Kf1 {[%emt 0:00:06]} Rxa2 {[%emt 0:00:06]} 45. Rxh4 {[%emt 0:00:01]} Ra3 {[%emt 0:00:11]} 46. Rb4 {[%emt 0:00:04]} Kg6 {[%emt 0:00:16]} 47. Rxb5 {[%emt 0:00:01]} Kf6 {[%emt 0:00:03]} 48. Kf2 {[%emt 0:00:00]} Ke6 {[%emt 0:00:07]} 49. Kg3 {[%emt 0:00:00]} Kd6 {[%emt 0:00:02]} 50. Rb4 {[%emt 0:00:00]} Kc5 {[%emt 0:00:11]} 51. Rb8 {[%emt 0:00:00]} Kd5 {[%emt 0:00:12]} 52. Kg4 {[%emt 0:00:00]} Ke4 {[%emt 0:00:02]} 53. h4 {[%emt 0:00:00]} Kd3 {[%emt 0:00:02]} 54. c4 {[%emt 0:00:00]} Kc3 {[%emt 0:00:05]} 55. c5 {[%emt 0:00:00]} 1-0

[Event "African Games-chT 2019"]
[Site "Casablanca"]
[Date "2019.08.25"]
[Round "6.33"]
[White "Kourakoumba, Florent"]
[Black "Marie, Patrick"]
[Result "0-1"]
[ECO "B20"]
[WhiteElo "1677"]
[BlackElo "1921"]
[Annotator "NA"]
[PlyCount "90"]
[EventDate "2019.08.24"]
[EventType "team-tourn"]
[EventCountry "MAR"]
[SourceTitle "playchess.com"]
[Source "ChessBase"]
[SourceQuality "1"]
[WhiteTeam "CAF"]
[BlackTeam "Mauritius"]
[BlackTeamCountry "MRI"]
[TimeControl "900+10"]

1. e4 {[%emt 0:00:00]} c5 {[%emt 0:00:00]} 2. Bc4 {[%emt 0:00:00]} Nc6 {[%emt 0:00:00]} 3. c3 {[%emt 0:00:00]} Nf6 {[%emt 0:00:14]} 4. d3 {[%emt 0:00:05]} e6 {[%emt 0:00:19]} 5. Ne2 {[%emt 0:00:06]} d5 {[%emt 0:00:01]} 6. exd5 {[%emt 0:00:08]} exd5 {[%emt 0:00:02]} 7. Bb3 {[%emt 0:00:03]} Be7 {[%emt 0:00:12]} 8. O-O {[%emt 0:00:02]} O-O {[%emt 0:00:03]} 9. Bg5 {[%emt 0:00:16]} Bg4 {[%emt 0:01:13]} 10. f3 {[%emt 0:00:04]} Bf5 {[%emt 0:00:16]} 11. Ng3 {[%emt 0:00:10]} Bg6 {[%emt 0:00:02]} 12. h4 {[%emt 0:00:16]} Qd6 {[%emt 0:00:51]} 13. Bxf6 {[%emt 0:00:13]} Bxf6 {[%emt 0:00:09]} 14. f4 Bxh4 {[%emt 0:00:13]} 15. Qf3 {[%emt 0:00:27]} c4 {[%emt 0:01:08]} 16. dxc4 {[%emt 0:00:22]} dxc4 {[%emt 0:00:03]} 17. Bd1 {[%emt 0:00:09]} Bd3 {[%emt 0:00:17]} 18. Rf2 {[%emt 0:00:19]} Qg6 {[%emt 0:00:09]} 19. Nh1 {[%emt 0:01:12]} Bxf2+ {[%emt 0:00:02]} 20. Nxf2 {[%emt 0:00:05]} Bxb1 {[%emt 0:00:00]} 21. Be2 {[%emt 0:00:26]} Bd3 22. Bxd3 {[%emt 0:00:08]} cxd3 {[%emt 0:00:29]} 23. Nxd3 {[%emt 0:00:03]} Rad8 {[%emt 0:00:10]} 24. f5 {[%emt 0:00:12]} Qd6 {[%emt 0:01:16]} 25. Nf4 {[%emt 0:00:19]} Rfe8 {[%emt 0:00:54]} 26. Rf1 {[%emt 0:00:03]} Qd2 {[%emt 0:00:36]} 27. Rf2 {[%emt 0:00:10]} Qd1+ {[%emt 0:00:04]} 28. Kh2 {[%emt 0:00:17]} Qxf3 {[%emt 0:00:05]} 29. gxf3 {[%emt 0:00:58]} Re5 {[%emt 0:00:30]} 30. f6 {[%emt 0:00:10]} gxf6 {[%emt 0:01:04]} 31. Rg2+ {[%emt 0:00:04]} Rg5 {[%emt 0:00:06]} 32. Rf2 {[%emt 0:00:08]} Ne5 {[%emt 0:00:07]} 33. Nh3 {[%emt 0:00:07]} Rh5 {[%emt 0:00:19]} 34. Kg3 Nd3 35. Re2 {[%emt 0:00:45]} Rxh3+ {[%emt 0:00:43]} 36. Kxh3 {[%emt 0:00:34]} Nf4+ {[%emt 0:00:01]} 37. Kg4 {[%emt 0:00:13]} Nxe2 {[%emt 0:00:02]} 38. Kf5 {[%emt 0:00:02]} Kg7 {[%emt 0:00:02]} 39. c4 {[%emt 0:00:05]} Nd4+ {[%emt 0:00:03]} 40. Ke4 {[%emt 0:00:04]} h5 {[%emt 0:00:03]} 41. b4 {[%emt 0:00:04]} h4 {[%emt 0:00:02]} 42. a4 {[%emt 0:00:00]} h3 {[%emt 0:00:01]} 43. b5 {[%emt 0:00:02]} h2 {[%emt 0:00:06]} 44. a5 {[%emt 0:00:05]} h1=Q 45. b6 Qxf3# {[%emt 0:01:19]} 0-1

[Event "African Games-chT 2019"]
[Site "Casablanca"]
[Date "2019.08.25"]
[Round "6.34"]
[White "Naipal, Hoolan"]
[Black "Koualet-Bebondi, Vianney Archeveq"]
[Result "1-0"]
[ECO "C41"]
[WhiteElo "1785"]
[BlackElo "1679"]
[Annotator "NA"]
[PlyCount "83"]
[EventDate "2019.08.24"]
[EventType "team-tourn"]
[EventCountry "MAR"]
[SourceTitle "playchess.com"]
[Source "ChessBase"]
[SourceQuality "1"]
[WhiteTeam "Mauritius"]
[BlackTeam "CAF"]
[WhiteTeamCountry "MRI"]
[TimeControl "900+10"]

1. e4 {[%emt 0:00:00]} e5 {[%emt 0:00:00]} 2. Nf3 {[%emt 0:00:00]} d6 {[%emt 0:00:01]} 3. d4 {[%emt 0:00:00]} exd4 {[%emt 0:00:06]} 4. Nxd4 {[%emt 0:00:00]} Bd7 {[%emt 0:00:07]} 5. Nc3 {[%emt 0:00:12]} Be7 {[%emt 0:00:16]} 6. Be2 {[%emt 0:00:11]} Nf6 {[%emt 0:00:05]} 7. O-O {[%emt 0:00:15]} O-O {[%emt 0:00:03]} 8. f4 {[%emt 0:00:33]} c6 {[%emt 0:00:22]} 9. Bf3 {[%emt 0:01:05]} Ne8 {[%emt 0:00:19]} 10. a4 {[%emt 0:01:32]} Bf6 {[%emt 0:00:02]} 11. Kh1 {[%emt 0:00:36]} Qb6 {[%emt 0:00:32]} 12. Nde2 {[%emt 0:00:15]} Na6 {[%emt 0:00:17]} 13. g4 {[%emt 0:02:15]} Qc7 {[%emt 0:01:42]} 14. g5 {[%emt 0:00:19]} Bxc3 {[%emt 0:00:06]} 15. Nxc3 {[%emt 0:00:06]} Be6 {[%emt 0:00:07]} 16. f5 {[%emt 0:00:27]} Bc4 {[%emt 0:00:05]} 17. Rg1 {[%emt 0:00:14]} f6 {[%emt 0:00:05]} 18. gxf6 {[%emt 0:00:16]} Nxf6 {[%emt 0:00:07]} 19. Bf4 {[%emt 0:00:41]} Rad8 {[%emt 0:00:44]} 20. Qd4 {[%emt 0:01:58]} Bf7 {[%emt 0:02:16]} 21. Qxf6 {[%emt 0:00:47]} Bh5 {[%emt 0:00:39]} 22. Qxg7+ {[%emt 0:01:32]} Qxg7 {[%emt 0:00:04]} 23. Rxg7+ {[%emt 0:00:03]} Kxg7 {[%emt 0:00:01]} 24. Bxh5 {[%emt 0:00:04]} Nb4 {[%emt 0:00:25]} 25. Rg1+ {[%emt 0:00:02]} Kh8 {[%emt 0:00:31]} 26. Rg2 {[%emt 0:00:33]} Rg8 {[%emt 0:00:08]} 27. Bg5 {[%emt 0:00:56]} Rdf8 {[%emt 0:00:14]} 28. h4 {[%emt 0:01:51]} h6 {[%emt 0:00:12]} 29. Bxh6 {[%emt 0:00:05]} Rxg2 {[%emt 0:00:02]} 30. Kxg2 {[%emt 0:00:05]} Rg8+ {[%emt 0:00:10]} 31. Bg6 {[%emt 0:00:17]} Nxc2 {[%emt 0:00:10]} 32. Bf4 {[%emt 0:00:19]} Ne1+ {[%emt 0:00:37]} 33. Kg3 {[%emt 0:00:08]} Nd3 {[%emt 0:00:03]} 34. Bxd6 {[%emt 0:00:11]} Kg7 {[%emt 0:00:26]} 35. Ne2 {[%emt 0:00:28]} Kf6 {[%emt 0:00:38]} 36. Nf4 {[%emt 0:00:23]} Nxb2 {[%emt 0:00:14]} 37. e5+ {[%emt 0:00:09]} Kg7 {[%emt 0:00:04]} 38. Ne6+ {[%emt 0:00:32]} Kh8 {[%emt 0:00:14]} 39. Be7 {[%emt 0:00:14]} Rc8 {[%emt 0:00:42]} 40. f6 {[%emt 0:00:58]} Nd3 {[%emt 0:00:28]} 41. f7 {[%emt 0:00:14]} Nxe5 {[%emt 0:00:11]} 42. Bf6# {[%emt 0:00:03]} 1-0